[Event "Early-Titled-Tuesday-Blitz-February-06-2024"]
[Site "Chess.com"]
[Date "2024.02.06"]
[Round "8"]
[White "nikitadovbnya2008"]
[Black "Kazan28"]
[Result "0-1"]
[WhiteElo "2289"]
[BlackElo "2604"]
[TimeControl "180+1"]
[EndTime "9:27:24 PST"]
[Termination "Kazan28 won by resignation"]

1. e4 {[%clk 0:02:55.2]} 1... d6 {[%clk 0:03:00.9]} 2. d4 {[%clk 0:02:54.3]}
2... Nf6 {[%clk 0:03:01.8]} 3. Nd2 {[%clk 0:02:50.8]} 3... e5 {[%clk 0:03:02.1]}
4. c3 {[%clk 0:02:50.7]} 4... Be7 {[%clk 0:03:01.9]} 5. Ngf3 {[%clk 0:02:50.5]}
5... Nbd7 {[%clk 0:02:37.2]} 6. Bd3 {[%clk 0:02:49.9]} 6... O-O {[%clk
0:02:35.8]} 7. O-O {[%clk 0:02:48.8]} 7... Re8 {[%clk 0:02:36.2]} 8. Re1 {[%clk
0:02:48.9]} 8... Bf8 {[%clk 0:02:36.3]} 9. Nf1 {[%clk 0:02:48.5]} 9... c6 {[%clk
0:02:36.3]} 10. Ng3 {[%clk 0:02:47.5]} 10... g6 {[%clk 0:02:36.3]} 11. Bg5
{[%clk 0:02:45.6]} 11... Bg7 {[%clk 0:02:25.2]} 12. Qd2 {[%clk 0:02:43.4]} 12...
Nf8 {[%clk 0:02:19.5]} 13. Rad1 {[%clk 0:02:33.6]} 13... Bg4 {[%clk 0:02:18.2]}
14. Be2 {[%clk 0:02:17.4]} 14... Qa5 {[%clk 0:02:11.2]} 15. b4 {[%clk
0:02:13.8]} 15... Qc7 {[%clk 0:02:05.8]} 16. h3 {[%clk 0:02:12.8]} 16... Bxf3
{[%clk 0:02:05.1]} 17. Bxf3 {[%clk 0:02:13.7]} 17... Ne6 {[%clk 0:02:05.1]} 18.
Bh6 {[%clk 0:01:56.4]} 18... Bxh6 {[%clk 0:02:02.6]} 19. Qxh6 {[%clk 0:01:57.3]}
19... Qe7 {[%clk 0:02:02.9]} 20. d5 {[%clk 0:01:37.9]} 20... cxd5 {[%clk
0:02:00]} 21. exd5 {[%clk 0:01:38.8]} 21... Ng7 {[%clk 0:01:59.8]} 22. c4 {[%clk
0:01:32.4]} 22... b6 {[%clk 0:01:59]} 23. c5 {[%clk 0:01:28.5]} 23... a5 {[%clk
0:01:52.2]} 24. cxd6 {[%clk 0:01:22.2]} 24... Qxd6 {[%clk 0:01:50]} 25. bxa5
{[%clk 0:01:22.3]} 25... Rxa5 {[%clk 0:01:49.7]} 26. Ne4 {[%clk 0:01:20.3]}
26... Nxe4 {[%clk 0:01:48.5]} 27. Bxe4 {[%clk 0:01:20.5]} 27... Rxa2 {[%clk
0:01:37.8]} 28. Qe3 {[%clk 0:01:17.3]} 28... Ra5 {[%clk 0:01:24.2]} 29. Rb1
{[%clk 0:01:15.7]} 29... Rc5 {[%clk 0:01:24.4]} 30. Rec1 {[%clk 0:01:08.4]}
30... Rec8 {[%clk 0:01:22]} 31. Rxc5 {[%clk 0:01:04.4]} 31... bxc5 {[%clk
0:01:22.9]} 32. g4 {[%clk 0:00:56.9]} 32... Ne8 {[%clk 0:01:17.9]} 33. g5 {[%clk
0:00:55.1]} 33... Ng7 {[%clk 0:01:18.1]} 34. Rb7 {[%clk 0:00:48.8]} 34... Nh5
{[%clk 0:01:17.3]} 35. Qa3 {[%clk 0:00:39.9]} 35... Nf4 {[%clk 0:01:13.8]} 36.
Qa7 {[%clk 0:00:39.5]} 36... Nxh3+ {[%clk 0:01:10]} 37. Kf1 {[%clk 0:00:37.2]}
37... Nxg5 {[%clk 0:01:10.9]} 38. Rd7 {[%clk 0:00:35.3]} 38... Qf6 {[%clk
0:01:10.5]} 39. Bg2 {[%clk 0:00:34.6]} 39... e4 {[%clk 0:01:08]} 40. Qb7 {[%clk
0:00:34.3]} 40... Re8 {[%clk 0:01:03.3]} 41. d6 {[%clk 0:00:30.4]} 41... e3
{[%clk 0:01:00.6]} 0-1

[Event "Early-Titled-Tuesday-Blitz-February-06-2024"]
[Site "Chess.com"]
[Date "2024.02.06"]
[Round "8"]
[White "bogcsab"]
[Black "Goryachkina"]
[Result "0-1"]
[WhiteElo "2457"]
[BlackElo "2671"]
[TimeControl "180+1"]
[EndTime "9:27:26 PST"]
[Termination "Goryachkina won by checkmate"]

1. d4 {[%clk 0:03:00.9]} 1... Nf6 {[%clk 0:02:59.7]} 2. c4 {[%clk 0:03:00.3]}
2... e6 {[%clk 0:03:00.1]} 3. Nf3 {[%clk 0:03:00]} 3... d5 {[%clk 0:02:59.8]} 4.
g3 {[%clk 0:02:57.5]} 4... dxc4 {[%clk 0:02:55.8]} 5. Bg2 {[%clk 0:02:57.6]}
5... Nbd7 {[%clk 0:02:56]} 6. O-O {[%clk 0:02:57.7]} 6... Rb8 {[%clk 0:02:55.4]}
7. a4 {[%clk 0:02:57.1]} 7... c6 {[%clk 0:02:54.5]} 8. Qc2 {[%clk 0:02:54.5]}
8... Be7 {[%clk 0:02:38.8]} 9. Qxc4 {[%clk 0:02:51.1]} 9... O-O {[%clk
0:02:38.7]} 10. Nc3 {[%clk 0:02:50.7]} 10... a5 {[%clk 0:02:35]} 11. e4 {[%clk
0:02:49]} 11... Bb4 {[%clk 0:02:34.4]} 12. e5 {[%clk 0:02:45.3]} 12... Nd5
{[%clk 0:02:33.9]} 13. Nxd5 {[%clk 0:02:44.4]} 13... cxd5 {[%clk 0:02:33.7]} 14.
Qd3 {[%clk 0:02:41.6]} 14... h6 {[%clk 0:02:33.3]} 15. Be3 {[%clk 0:02:37.7]}
15... Qe7 {[%clk 0:02:31.1]} 16. Rfc1 {[%clk 0:02:36.4]} 16... Nb6 {[%clk
0:02:25.7]} 17. b3 {[%clk 0:02:34.4]} 17... Bd7 {[%clk 0:02:25.5]} 18. Rc7
{[%clk 0:02:32.4]} 18... Rfc8 {[%clk 0:02:25]} 19. Rac1 {[%clk 0:02:30.7]} 19...
Qd8 {[%clk 0:02:24.6]} 20. Rxc8 {[%clk 0:02:29.5]} 20... Rxc8 {[%clk 0:02:24.8]}
21. Qd1 {[%clk 0:02:21.4]} 21... Rc6 {[%clk 0:02:20.5]} 22. Rxc6 {[%clk
0:02:19.5]} 22... Bxc6 {[%clk 0:02:20.1]} 23. Ne1 {[%clk 0:02:19.4]} 23... Nc8
{[%clk 0:02:16.2]} 24. Nd3 {[%clk 0:02:19.4]} 24... Bf8 {[%clk 0:02:15.8]} 25.
Qc2 {[%clk 0:02:18.7]} 25... Ne7 {[%clk 0:02:15.2]} 26. g4 {[%clk 0:02:12.5]}
26... Qb6 {[%clk 0:02:12.1]} 27. Qc3 {[%clk 0:01:55]} 27... Ng6 {[%clk
0:02:06.5]} 28. Bd2 {[%clk 0:01:48.6]} 28... Nh4 {[%clk 0:02:02]} 29. Bh1 {[%clk
0:01:45.2]} 29... Be7 {[%clk 0:01:49.6]} 30. Nc5 {[%clk 0:01:34.1]} 30... Bxc5
{[%clk 0:01:48.7]} 31. dxc5 {[%clk 0:01:32.4]} 31... Qa6 {[%clk 0:01:48.8]} 32.
Qxa5 {[%clk 0:01:31.6]} 32... Qe2 {[%clk 0:01:41.9]} 33. Qd8+ {[%clk 0:01:24.9]}
33... Kh7 {[%clk 0:01:42]} 34. Qxh4 {[%clk 0:01:24.5]} 34... Qd1+ {[%clk
0:01:42]} 35. Kg2 {[%clk 0:01:22.2]} 35... d4+ {[%clk 0:01:42.1]} 36. Kh3 {[%clk
0:01:18.3]} 36... Bxh1 {[%clk 0:01:32.4]} 37. Qe7 {[%clk 0:00:10.9]} 37... Qf1+
{[%clk 0:01:17.1]} 38. Kh4 {[%clk 0:00:09.6]} 38... Qxf2+ {[%clk 0:01:16.6]} 39.
Kh3 {[%clk 0:00:07.3]} 39... Qg2+ {[%clk 0:01:16.5]} 40. Kh4 {[%clk 0:00:07.4]}
40... Qxh2# {[%clk 0:01:16.9]} 0-1

[Event "Early-Titled-Tuesday-Blitz-February-06-2024"]
[Site "Chess.com"]
[Date "2024.02.06"]
[Round "8"]
[White "igorknyazev"]
[Black "yuriydovzik"]
[Result "0-1"]
[WhiteElo "2130"]
[BlackElo "2209"]
[TimeControl "180+1"]
[EndTime "9:27:26 PST"]
[Termination "yuriydovzik won on time"]

1. e4 {[%clk 0:02:54.2]} 1... Nf6 {[%clk 0:02:56.3]} 2. e5 {[%clk 0:02:53.6]}
2... Nd5 {[%clk 0:02:56.3]} 3. d4 {[%clk 0:02:53.7]} 3... d6 {[%clk 0:02:56.4]}
4. Nf3 {[%clk 0:02:50.2]} 4... Bg4 {[%clk 0:02:49.3]} 5. Bc4 {[%clk 0:02:46]}
5... c6 {[%clk 0:02:45.5]} 6. O-O {[%clk 0:02:26.8]} 6... e6 {[%clk 0:02:41.3]}
7. h3 {[%clk 0:02:21.4]} 7... Bxf3 {[%clk 0:02:37.7]} 8. Qxf3 {[%clk 0:02:20.3]}
8... dxe5 {[%clk 0:02:37.8]} 9. dxe5 {[%clk 0:02:19.4]} 9... Nd7 {[%clk
0:02:37.8]} 10. Qg3 {[%clk 0:02:13]} 10... g6 {[%clk 0:02:34.6]} 11. Bg5 {[%clk
0:02:10.8]} 11... Qc7 {[%clk 0:02:29.7]} 12. Re1 {[%clk 0:02:05.4]} 12... Bg7
{[%clk 0:02:25.9]} 13. f4 {[%clk 0:01:45.1]} 13... Qb6+ {[%clk 0:02:14.8]} 14.
Kh1 {[%clk 0:01:30.6]} 14... Qxb2 {[%clk 0:02:14.3]} 15. Nd2 {[%clk 0:01:05.4]}
15... Qxc2 {[%clk 0:01:53.8]} 16. Ne4 {[%clk 0:01:05.4]} 16... O-O {[%clk
0:01:50]} 17. Rac1 {[%clk 0:00:52]} 17... Qa4 {[%clk 0:01:42.1]} 18. Bxd5 {[%clk
0:00:25.5]} 18... cxd5 {[%clk 0:01:33.8]} 19. Nf6+ {[%clk 0:00:25.4]} 19... Nxf6
{[%clk 0:01:25.8]} 20. exf6 {[%clk 0:00:20.2]} 20... Bh8 {[%clk 0:01:24.8]} 21.
Qh4 {[%clk 0:00:20]} 21... Rfc8 {[%clk 0:01:19.2]} 22. Rcd1 {[%clk 0:00:18.3]}
22... Qxa2 {[%clk 0:01:09.4]} 23. Qh6 {[%clk 0:00:17.5]} 23... Rc2 {[%clk
0:00:59.9]} 24. Rxe6 {[%clk 0:00:15.7]} 24... Rxg2 {[%clk 0:00:52.7]} 0-1

[Event "Early-Titled-Tuesday-Blitz-February-06-2024"]
[Site "Chess.com"]
[Date "2024.02.06"]
[Round "8"]
[White "Boundless_Strike"]
[Black "vladoboch"]
[Result "1-0"]
[WhiteElo "2664"]
[BlackElo "2470"]
[TimeControl "180+1"]
[EndTime "9:27:31 PST"]
[Termination "Boundless_Strike won by resignation"]

1. d4 {[%clk 0:03:00.9]} 1... Nf6 {[%clk 0:03:00]} 2. f3 {[%clk 0:03:01]} 2...
d5 {[%clk 0:02:57.4]} 3. e4 {[%clk 0:03:01.2]} 3... dxe4 {[%clk 0:02:57.7]} 4.
Nc3 {[%clk 0:03:01.2]} 4... Bf5 {[%clk 0:02:53.7]} 5. fxe4 {[%clk 0:02:57.4]}
5... Nxe4 {[%clk 0:02:48.8]} 6. Qf3 {[%clk 0:02:57.2]} 6... Nxc3 {[%clk
0:02:41.4]} 7. bxc3 {[%clk 0:02:56.4]} 7... Bc8 {[%clk 0:02:31.4]} 8. Bc4 {[%clk
0:02:55.3]} 8... e6 {[%clk 0:02:27.5]} 9. Nh3 {[%clk 0:02:54.8]} 9... Be7 {[%clk
0:02:22]} 10. O-O {[%clk 0:02:54]} 10... O-O {[%clk 0:02:22.5]} 11. Nf4 {[%clk
0:02:51.8]} 11... Bd7 {[%clk 0:02:17.8]} 12. Nh5 {[%clk 0:02:43.9]} 12... g6
{[%clk 0:01:28.9]} 13. Bh6 {[%clk 0:02:34.3]} 13... Bg5 {[%clk 0:01:18]} 14.
Bxf8 {[%clk 0:01:41.6]} 14... Qxf8 {[%clk 0:01:17.5]} 15. Nf6+ {[%clk
0:01:38.9]} 15... Bxf6 {[%clk 0:01:15.3]} 16. Qxf6 {[%clk 0:01:39.8]} 16... Nc6
{[%clk 0:00:59.9]} 17. d5 {[%clk 0:01:25.3]} 17... exd5 {[%clk 0:00:50.9]} 18.
Rad1 {[%clk 0:01:03.4]} 18... Be6 {[%clk 0:00:48.5]} 19. Bxd5 {[%clk 0:01:00.5]}
19... Re8 {[%clk 0:00:22.3]} 20. c4 {[%clk 0:00:51.8]} 20... Nd8 {[%clk
0:00:17]} 21. Kh1 {[%clk 0:00:43]} 21... c6 {[%clk 0:00:17.4]} 22. Bxe6 {[%clk
0:00:43.2]} 22... Nxe6 {[%clk 0:00:17.9]} 23. Rd7 {[%clk 0:00:42.2]} 23... Nd8
{[%clk 0:00:10]} 24. Rfd1 {[%clk 0:00:35.1]} 24... Qb4 {[%clk 0:00:10.2]} 25.
Rxd8 {[%clk 0:00:33.4]} 1-0

[Event "Early-Titled-Tuesday-Blitz-February-06-2024"]
[Site "Chess.com"]
[Date "2024.02.06"]
[Round "8"]
[White "ChessQueen"]
[Black "koncheto"]
[Result "1-0"]
[WhiteElo "2690"]
[BlackElo "2514"]
[TimeControl "180+1"]
[EndTime "9:27:31 PST"]
[Termination "ChessQueen won on time"]

1. d4 {[%clk 0:02:57.2]} 1... Nf6 {[%clk 0:02:57.9]} 2. Nf3 {[%clk 0:02:56.6]}
2... e6 {[%clk 0:02:57.9]} 3. g3 {[%clk 0:02:55.8]} 3... c5 {[%clk 0:02:57.9]}
4. Bg2 {[%clk 0:02:55.4]} 4... d5 {[%clk 0:02:58.2]} 5. c4 {[%clk 0:02:54.5]}
5... Be7 {[%clk 0:02:53.5]} 6. O-O {[%clk 0:02:47.1]} 6... O-O {[%clk
0:02:44.3]} 7. cxd5 {[%clk 0:02:46.7]} 7... Nxd5 {[%clk 0:02:43.1]} 8. Nc3
{[%clk 0:02:46.4]} 8... Nc6 {[%clk 0:02:36.3]} 9. e4 {[%clk 0:02:44.9]} 9... Nf6
{[%clk 0:02:07.5]} 10. d5 {[%clk 0:02:35.9]} 10... exd5 {[%clk 0:02:06.7]} 11.
exd5 {[%clk 0:02:32.4]} 11... Nb4 {[%clk 0:02:06.8]} 12. Ne5 {[%clk 0:02:29.6]}
12... Bf5 {[%clk 0:01:58.1]} 13. Be3 {[%clk 0:02:25.7]} 13... Bd6 {[%clk
0:01:36.3]} 14. Bf4 {[%clk 0:02:07.5]} 14... g5 {[%clk 0:01:21.6]} 15. Bxg5
{[%clk 0:01:49.9]} 15... Bxe5 {[%clk 0:01:19.4]} 16. Qf3 {[%clk 0:01:49.6]}
16... Bg4 {[%clk 0:00:45.4]} 17. Qe3 {[%clk 0:01:49.7]} 17... Re8 {[%clk
0:00:44]} 18. Qd2 {[%clk 0:01:49.7]} 18... Qd7 {[%clk 0:00:21.7]} 19. Bh6 {[%clk
0:01:22.3]} 19... Bh5 {[%clk 0:00:12.6]} 20. Rfe1 {[%clk 0:01:14.6]} 20... Bg6
{[%clk 0:00:10.9]} 21. Re2 {[%clk 0:00:59.6]} 21... Re7 {[%clk 0:00:05.7]} 22.
Rae1 {[%clk 0:00:59.3]} 22... Rae8 {[%clk 0:00:05.9]} 23. h3 {[%clk 0:00:53.1]}
23... Bxc3 {[%clk 0:00:04.7]} 24. bxc3 {[%clk 0:00:52.6]} 24... Rxe2 {[%clk
0:00:04.8]} 25. Rxe2 {[%clk 0:00:52.2]} 25... Rxe2 {[%clk 0:00:05.6]} 26. Qxe2
{[%clk 0:00:53.1]} 26... Nbxd5 {[%clk 0:00:06.2]} 27. Qe5 {[%clk 0:00:52.3]}
27... Qe6 {[%clk 0:00:03.1]} 28. Qb8+ {[%clk 0:00:52.4]} 28... Qe8 {[%clk
0:00:02]} 29. Qxb7 {[%clk 0:00:52.6]} 29... Ne7 {[%clk 0:00:01.6]} 30. g4 {[%clk
0:00:49.4]} 1-0

[Event "Early-Titled-Tuesday-Blitz-February-06-2024"]
[Site "Chess.com"]
[Date "2024.02.06"]
[Round "8"]
[White "FoxOnTheRun97"]
[Black "viniciusrego"]
[Result "0-1"]
[WhiteElo "2627"]
[BlackElo "2471"]
[TimeControl "180+1"]
[EndTime "9:27:35 PST"]
[Termination "viniciusrego won by resignation"]

1. d4 {[%clk 0:03:00.9]} 1... g6 {[%clk 0:03:00.2]} 2. h4 {[%clk 0:03:00.7]}
2... h5 {[%clk 0:02:59.8]} 3. e4 {[%clk 0:03:00.6]} 3... c6 {[%clk 0:03:00]} 4.
Bd3 {[%clk 0:02:58.9]} 4... d5 {[%clk 0:03:00.5]} 5. e5 {[%clk 0:02:59.3]} 5...
Bg7 {[%clk 0:03:00.4]} 6. Ne2 {[%clk 0:02:56.9]} 6... Nh6 {[%clk 0:03:00.4]} 7.
Ng3 {[%clk 0:02:55]} 7... Bg4 {[%clk 0:02:59.3]} 8. f3 {[%clk 0:02:55]} 8... Bc8
{[%clk 0:02:59.8]} 9. c3 {[%clk 0:02:54.5]} 9... c5 {[%clk 0:02:59.4]} 10. Qc2
{[%clk 0:02:48.9]} 10... cxd4 {[%clk 0:02:50]} 11. Bxg6 {[%clk 0:02:35.6]} 11...
fxg6 {[%clk 0:02:49.9]} 12. Qxg6+ {[%clk 0:02:34]} 12... Kf8 {[%clk 0:02:50.5]}
13. Nxh5 {[%clk 0:02:30.2]} 13... Nf5 {[%clk 0:02:40.2]} 14. Nxg7 {[%clk
0:02:01.7]} 14... Nxg7 {[%clk 0:02:41.1]} 15. Bh6 {[%clk 0:02:01.3]} 15... Rg8
{[%clk 0:02:39.4]} 16. e6 {[%clk 0:02:00]} 16... Bxe6 {[%clk 0:02:13]} 17. Qxe6
{[%clk 0:02:00.9]} 17... Nc6 {[%clk 0:02:13.1]} 18. Qf5+ {[%clk 0:01:26.3]}
18... Ke8 {[%clk 0:02:12.7]} 19. Qg6+ {[%clk 0:01:26.3]} 19... Kf8 {[%clk
0:02:13]} 20. Nd2 {[%clk 0:01:14.2]} 20... dxc3 {[%clk 0:02:11.3]} 21. bxc3
{[%clk 0:01:12.4]} 21... Qa5 {[%clk 0:02:11.4]} 22. O-O {[%clk 0:01:03.5]} 22...
Qxc3 {[%clk 0:02:09.6]} 23. Rfe1 {[%clk 0:01:02.1]} 23... Qf6 {[%clk 0:02:02.3]}
24. Qxf6+ {[%clk 0:00:52.8]} 24... exf6 {[%clk 0:02:03.2]} 25. Nb3 {[%clk
0:00:51.8]} 25... Kf7 {[%clk 0:02:02.8]} 26. Nc5 {[%clk 0:00:51.2]} 26... Nf5
{[%clk 0:02:01.7]} 27. Bf4 {[%clk 0:00:49]} 27... Nxh4 {[%clk 0:02:00.7]} 28.
Re2 {[%clk 0:00:46.6]} 28... Nxf3+ {[%clk 0:02:00.5]} 29. Kf2 {[%clk 0:00:46.3]}
29... Nfd4 {[%clk 0:02:01]} 30. Rd2 {[%clk 0:00:45.5]} 30... Rg4 {[%clk
0:01:55.7]} 31. g3 {[%clk 0:00:43.5]} 31... Rh8 {[%clk 0:01:53.3]} 32. Nxb7
{[%clk 0:00:34.6]} 32... Rh2+ {[%clk 0:01:52.2]} 33. Ke3 {[%clk 0:00:35]} 33...
Nc2+ {[%clk 0:01:43.6]} 34. Kd3 {[%clk 0:00:33.6]} 34... Rxd2+ {[%clk
0:01:43.3]} 35. Kxd2 {[%clk 0:00:30.5]} 35... Nxa1 {[%clk 0:01:44.2]} 36. Nd6+
{[%clk 0:00:28.2]} 36... Ke6 {[%clk 0:01:43.9]} 37. Nb5 {[%clk 0:00:25.1]} 37...
Rg8 {[%clk 0:01:40.7]} 38. Kc3 {[%clk 0:00:23]} 38... Rh8 {[%clk 0:01:37.6]} 39.
Nc7+ {[%clk 0:00:21.7]} 39... Kf5 {[%clk 0:01:35.8]} 40. Nxd5 {[%clk 0:00:22.3]}
40... Rh1 {[%clk 0:01:35]} 41. a4 {[%clk 0:00:20]} 41... Ke4 {[%clk 0:01:31.3]}
42. Nxf6+ {[%clk 0:00:19.4]} 42... Kf5 {[%clk 0:01:31.4]} 43. Nd5 {[%clk
0:00:19.8]} 43... Ke6 {[%clk 0:01:31.7]} 44. Nc7+ {[%clk 0:00:19.6]} 44... Kd7
{[%clk 0:01:32.3]} 45. Nb5 {[%clk 0:00:19.5]} 45... a6 {[%clk 0:01:32.2]} 46.
Na3 {[%clk 0:00:19.7]} 46... Rf1 {[%clk 0:01:29]} 47. Nc4 {[%clk 0:00:19.6]}
47... Rf3+ {[%clk 0:01:28.7]} 48. Kb2 {[%clk 0:00:19.6]} 48... Nb3 {[%clk
0:01:26.2]} 49. Ne3 {[%clk 0:00:15.7]} 49... Nc5 {[%clk 0:01:24.7]} 50. Nd5
{[%clk 0:00:14.2]} 50... Nd3+ {[%clk 0:01:24.9]} 51. Kc2 {[%clk 0:00:13.8]}
51... Nxf4 {[%clk 0:01:25.8]} 52. g4 {[%clk 0:00:13.9]} 52... Nxd5 {[%clk
0:01:25.6]} 0-1

[Event "Early-Titled-Tuesday-Blitz-February-06-2024"]
[Site "Chess.com"]
[Date "2024.02.06"]
[Round "8"]
[White "RandomNoob04"]
[Black "rezamahdavi2008"]
[Result "1-0"]
[WhiteElo "2593"]
[BlackElo "2830"]
[TimeControl "180+1"]
[EndTime "9:27:36 PST"]
[Termination "RandomNoob04 won on time"]

1. e4 {[%clk 0:03:00.9]} 1... g6 {[%clk 0:00:39]} 2. h4 {[%clk 0:02:59.5]} 2...
Bg7 {[%clk 0:00:39.9]} 3. h5 {[%clk 0:03:00.2]} 3... d6 {[%clk 0:00:40.3]} 4. d4
{[%clk 0:02:59.7]} 4... Nc6 {[%clk 0:00:39.9]} 5. c3 {[%clk 0:02:59.7]} 5... e5
{[%clk 0:00:40.3]} 6. h6 {[%clk 0:02:58]} 6... Bf8 {[%clk 0:00:39.1]} 7. Nf3
{[%clk 0:02:55.4]} 7... Bg4 {[%clk 0:00:38.3]} 8. Bb5 {[%clk 0:02:49.5]} 8...
Nf6 {[%clk 0:00:28.1]} 9. dxe5 {[%clk 0:02:27.5]} 9... dxe5 {[%clk 0:00:27.5]}
10. Bxc6+ {[%clk 0:02:25.6]} 10... bxc6 {[%clk 0:00:26.2]} 11. Qxd8+ {[%clk
0:02:23]} 11... Rxd8 {[%clk 0:00:27.1]} 12. Bg5 {[%clk 0:02:22.2]} 12... Be7
{[%clk 0:00:26.5]} 13. Nbd2 {[%clk 0:02:20.7]} 13... Bxf3 {[%clk 0:00:23.1]} 14.
Nxf3 {[%clk 0:02:19.2]} 14... Nxe4 {[%clk 0:00:19.5]} 15. Bxe7 {[%clk
0:02:19.9]} 15... Kxe7 {[%clk 0:00:20.4]} 16. Nxe5 {[%clk 0:02:20.6]} 16... Kf6
{[%clk 0:00:19.1]} 17. Nxc6 {[%clk 0:02:17.2]} 17... Rd6 {[%clk 0:00:18.5]} 18.
Nd4 {[%clk 0:02:15.8]} 18... c5 {[%clk 0:00:14.9]} 19. Nb3 {[%clk 0:02:14.3]}
19... Rhd8 {[%clk 0:00:09.5]} 20. O-O {[%clk 0:02:03]} 20... Kg5 {[%clk
0:00:08]} 21. Rfe1 {[%clk 0:02:00]} 21... f5 {[%clk 0:00:06.9]} 22. f3 {[%clk
0:01:56.6]} 22... Ng3 {[%clk 0:00:05.4]} 23. Nxc5 {[%clk 0:01:57]} 23... Rd2
{[%clk 0:00:05]} 24. Ne6+ {[%clk 0:01:56.6]} 24... Kxh6 {[%clk 0:00:04]} 25.
Nxd8 {[%clk 0:01:57]} 25... Rxd8 {[%clk 0:00:04.6]} 26. Rad1 {[%clk 0:01:56.7]}
26... Rb8 {[%clk 0:00:05.4]} 27. b3 {[%clk 0:01:56.6]} 27... Kg5 {[%clk
0:00:06.1]} 28. Rd7 {[%clk 0:01:56.3]} 28... h5 {[%clk 0:00:06.3]} 29. Kf2
{[%clk 0:01:51.2]} 29... h4 {[%clk 0:00:06.5]} 30. Rd6 {[%clk 0:01:47.2]} 30...
Nh5 {[%clk 0:00:06.6]} 31. Re7 {[%clk 0:01:43.9]} 31... Nf4 {[%clk 0:00:07.2]}
32. c4 {[%clk 0:01:36.5]} 32... a5 {[%clk 0:00:06.7]} 33. c5 {[%clk 0:01:36.7]}
33... a4 {[%clk 0:00:06.1]} 34. c6 {[%clk 0:01:33.2]} 34... axb3 {[%clk
0:00:05.4]} 35. c7 {[%clk 0:01:33.2]} 35... bxa2 {[%clk 0:00:02.7]} 36. cxb8=Q
{[%clk 0:01:11.1]} 36... a1=Q {[%clk 0:00:01.9]} 37. Qd8 {[%clk 0:01:04.9]} 1-0

[Event "Early-Titled-Tuesday-Blitz-February-06-2024"]
[Site "Chess.com"]
[Date "2024.02.06"]
[Round "8"]
[White "GothamChess"]
[Black "Levanzovsky"]
[Result "1-0"]
[WhiteElo "2694"]
[BlackElo "2514"]
[TimeControl "180+1"]
[EndTime "9:27:37 PST"]
[Termination "GothamChess won by resignation"]

1. e4 {[%clk 0:03:00.9]} 1... g6 {[%clk 0:02:55.1]} 2. Bc4 {[%clk 0:02:58.3]}
2... Nf6 {[%clk 0:02:42.8]} 3. e5 {[%clk 0:02:54.1]} 3... d5 {[%clk 0:02:41.5]}
4. Bb3 {[%clk 0:02:53.2]} 4... Nfd7 {[%clk 0:02:28]} 5. d4 {[%clk 0:02:52.6]}
5... Nb6 {[%clk 0:02:27.1]} 6. h4 {[%clk 0:02:52.7]} 6... h5 {[%clk 0:02:25.6]}
7. a4 {[%clk 0:02:52.2]} 7... a5 {[%clk 0:02:22.9]} 8. Nh3 {[%clk 0:02:46.3]}
8... Bg4 {[%clk 0:02:18.1]} 9. Qd3 {[%clk 0:02:42.8]} 9... Bxh3 {[%clk
0:02:07.8]} 10. Rxh3 {[%clk 0:02:36.6]} 10... e6 {[%clk 0:02:07.3]} 11. Bg5
{[%clk 0:02:36.1]} 11... Be7 {[%clk 0:02:04.1]} 12. Rg3 {[%clk 0:02:33.7]} 12...
Bxg5 {[%clk 0:02:00.9]} 13. Rxg5 {[%clk 0:02:32.5]} 13... Nc6 {[%clk 0:01:53.4]}
14. c3 {[%clk 0:02:31.8]} 14... Ne7 {[%clk 0:01:53.1]} 15. Qh3 {[%clk
0:02:26.8]} 15... c5 {[%clk 0:01:43.3]} 16. Na3 {[%clk 0:02:25.9]} 16... cxd4
{[%clk 0:01:27.3]} 17. cxd4 {[%clk 0:02:25.5]} 17... Nf5 {[%clk 0:01:20.6]} 18.
Nb5 {[%clk 0:02:21.1]} 18... Qe7 {[%clk 0:01:15.1]} 19. Kf1 {[%clk 0:02:10.7]}
19... Rc8 {[%clk 0:01:11.8]} 20. Rxf5 {[%clk 0:01:33.2]} 20... exf5 {[%clk
0:01:12.7]} 21. Nd6+ {[%clk 0:01:33.4]} 21... Kd7 {[%clk 0:01:13]} 22. Nxb7
{[%clk 0:01:26.5]} 22... Qb4 {[%clk 0:01:08.7]} 23. Nc5+ {[%clk 0:01:24.8]}
23... Ke7 {[%clk 0:00:57.1]} 24. Qe3 {[%clk 0:01:21.7]} 24... Nc4 {[%clk
0:00:45.9]} 25. Qg5+ {[%clk 0:01:14.2]} 25... Ke8 {[%clk 0:00:45.9]} 26. Qf6
{[%clk 0:01:08.1]} 26... Rxc5 {[%clk 0:00:25.5]} 27. Qxh8+ {[%clk 0:01:06.4]}
27... Kd7 {[%clk 0:00:25.1]} 28. e6+ {[%clk 0:01:00.4]} 28... fxe6 {[%clk
0:00:21.5]} 29. dxc5 {[%clk 0:00:59.3]} 29... Qxb3 {[%clk 0:00:21.9]} 30. Re1
{[%clk 0:00:52.2]} 30... Qxb2 {[%clk 0:00:17]} 31. c6+ {[%clk 0:00:48]} 31...
Kxc6 {[%clk 0:00:12.4]} 32. Qc8+ {[%clk 0:00:48.1]} 32... Kb6 {[%clk 0:00:03.3]}
33. Rxe6+ {[%clk 0:00:48.8]} 1-0

[Event "Early-Titled-Tuesday-Blitz-February-06-2024"]
[Site "Chess.com"]
[Date "2024.02.06"]
[Round "8"]
[White "campochess"]
[Black "LeoWin2012"]
[Result "0-1"]
[WhiteElo "2069"]
[BlackElo "2149"]
[TimeControl "180+1"]
[EndTime "9:27:37 PST"]
[Termination "LeoWin2012 won on time"]

1. e4 {[%clk 0:00:48.7]} 1... e6 {[%clk 0:03:00.9]} 2. Qe2 {[%clk 0:00:47.6]}
2... g6 {[%clk 0:02:55.6]} 3. d4 {[%clk 0:00:47.4]} 3... Bg7 {[%clk 0:02:55.9]}
4. Nf3 {[%clk 0:00:47.6]} 4... Ne7 {[%clk 0:02:54]} 5. Bg5 {[%clk 0:00:46.6]}
5... d6 {[%clk 0:02:52.5]} 6. Nbd2 {[%clk 0:00:46.4]} 6... Nbc6 {[%clk
0:02:51.2]} 7. c3 {[%clk 0:00:45.8]} 7... h6 {[%clk 0:02:49.2]} 8. Be3 {[%clk
0:00:44.5]} 8... a5 {[%clk 0:02:48.1]} 9. a3 {[%clk 0:00:43.5]} 9... Bd7 {[%clk
0:02:43.2]} 10. g4 {[%clk 0:00:43.4]} 10... g5 {[%clk 0:02:39.5]} 11. h4 {[%clk
0:00:43.1]} 11... f6 {[%clk 0:02:37.5]} 12. hxg5 {[%clk 0:00:42.7]} 12... fxg5
{[%clk 0:02:35.9]} 13. Qd3 {[%clk 0:00:35.2]} 13... e5 {[%clk 0:02:22.5]} 14. d5
{[%clk 0:00:34.7]} 14... Nb8 {[%clk 0:02:20.1]} 15. c4 {[%clk 0:00:33.6]} 15...
Bxg4 {[%clk 0:02:19.7]} 16. Be2 {[%clk 0:00:32.3]} 16... Na6 {[%clk 0:02:03.1]}
17. O-O-O {[%clk 0:00:29.4]} 17... Ng6 {[%clk 0:01:44.7]} 18. c5 {[%clk
0:00:28.4]} 18... Nxc5 {[%clk 0:01:42.2]} 19. Bxc5 {[%clk 0:00:27.8]} 19... dxc5
{[%clk 0:01:43.1]} 20. Qb5+ {[%clk 0:00:24.5]} 20... Qd7 {[%clk 0:01:42.2]} 21.
Qxc5 {[%clk 0:00:24.4]} 21... Nf4 {[%clk 0:01:37.7]} 22. Bb5 {[%clk 0:00:18.2]}
22... c6 {[%clk 0:01:33]} 23. dxc6 {[%clk 0:00:18.3]} 23... Nd3+ {[%clk
0:01:32.4]} 24. Bxd3 {[%clk 0:00:18]} 24... Qxd3 {[%clk 0:01:32.8]} 25. Nxe5
{[%clk 0:00:14.1]} 25... Qd8 {[%clk 0:01:18.7]} 26. c7 {[%clk 0:00:13.9]} 26...
Qf6 {[%clk 0:00:51.4]} 27. c8=Q+ {[%clk 0:00:10.2]} 27... Rxc8 {[%clk
0:00:50.8]} 28. Qxc8+ {[%clk 0:00:10.3]} 28... Bxc8 {[%clk 0:00:50.3]} 29. Ndc4
{[%clk 0:00:08.5]} 29... O-O {[%clk 0:00:44.8]} 0-1